Cogmind - Beta 13 @@@ ROGUE MODE // 2024.04.08 @ 09:43:21 Player: Eschess Result: Destroyed by G-47 Trooper with Particle Gun Performance ------------- Evolutions (0) 0 Regions Visited (2) 400 Robots Destroyed (23) 115 Value Destroyed (404) 404 Prototype IDs (0) 0 Alien Tech Used (0) 0 Bonus (7) 7 TOTAL SCORE: 926 Bonus ------- Follower Combat Kills 7 Cogmind --------- Core Integrity 0/250 Matter 298/300 Energy 150/150 System Corruption 0% Temperature Cool (98) Movement Walking (120) Location -10/Mines Parts ------- > --- POWER (1) -------- Light Angular Momentum Engine > --- PROPULSION (2) --- Carbon-fiber Leg Carbon-fiber Leg > --- UTILITY (2) ------ Small Storage Unit Recalibrator > --- WEAPON (2) ------- Beamcaster Light Assault Rifle > --- INVENTORY (8) ---- Ion Engine Aluminum Leg Aluminum Leg Improved Heat Sink Large Matter Pod (150) Seismic Detector Hacking Suite Light Assault Rifle Peak State ------------ > --- POWER ------------ Light Angular Momentum Engine > --- PROPULSION ------- Carbon-fiber Leg Carbon-fiber Leg > --- UTILITY ---------- Small Storage Unit Recalibrator > --- WEAPON ----------- Beamcaster Light Assault Rifle > --- INVENTORY -------- Aluminum Leg Aluminum Leg Improved Heat Sink Large Matter Pod Seismic Detector Hacking Suite [Rating: 23] Favorites ----------- Power Light Ion Engine Engine Light Ion Engine Propulsion Aluminum Leg Leg Aluminum Leg Wheel Compact Wheel Utility Small Storage Unit Device Seismic Detector Storage Small Storage Unit Weapon Medium Laser Energy Gun Medium Laser Ballistic Gun Light Assault Rifle Launcher Grenade Launcher Build | -11 -10 -10 ------- Run | Yrd Mat Min Slots Evolved . | . . . Power . | . . . Propulsion . | . . . Utility . | . . . Weapon . | . . . Parts Attached 31 | 10 9 12 Power 4 | 1 1 2 Engine 4 | 1 1 2 Core . | . . . Reactor . | . . . Propulsion 10 | 4 2 4 Treads . | . . . Leg 9 | 3 2 4 Wheel 1 | 1 . . Hover . | . . . Flight . | . . . Utility 5 | 2 . 3 Device 4 | 1 . 3 Storage 1 | 1 . . Processor . | . . . Hackware . | . . . Protection . | . . . Artifact . | . . . Weapon 12 | 3 6 3 Energy Gun 7 | 2 3 2 Energy Cannon . | . . . Ballistic Gun 3 | 1 1 1 Ballistic Cannon . | . . . Launcher 2 | . 2 . Special Weapon . | . . . Impact Weapon . | . . . Slashing Weapon . | . . . Piercing Weapon . | . . . Special Melee Weapon . | . . . Unidentified Prototypes . | . . . Parts Lost 9 | . 2 7 Power 2 | . . 2 Propulsion 3 | . 1 2 Utility 1 | . . 1 Weapon 3 | . 1 2 Highest Loss Streak 7 | . 2 7 To Critical Strikes . | . . . Average Slot Usage (%) 97 | . 99 94 Engine 13 | . 14 11 Leg 27 | . 27 26 Device 14 | . 14 14 Storage 14 | . 14 14 Energy Gun 22 | . 25 18 Ballistic Gun 3 | . . 8 Naked Turns . | . . . Heaviest Build 21 | 13 16 21 Greatest Support 30 | 20 20 30 Greatest Overweight (x) 1 | . 1 1 Average Overweight (x) . | . . . Largest Inventory Capacity 8 | 8 8 8 Average Capacity 7 | 7 8 8 Most Carried 8 | 7 8 8 Average Carried 6 | 4 7 5 Final Capacity 8 | 8 8 8 Final Carried 8 | 7 8 8 Class Distribution -------------------- 77% | Mutant 22% | Scavenger-Mutant Dominant Class ---------------- Mutant | -10/Materials Scavenger-Mutant | -10/Mines Resources | -11 -10 -10 ----------- Run | Yrd Mat Min Matter Collected 661 | 281 180 200 Remotely . | . . . Salvage Created 517 | 53 222 242 Parts 45 | 6 26 13 Haulers Intercepted . | . . . Recyclers Shooed . | . . . Parts Field Recycled . | . . . Retrieved Matter . | . . . Parts Self-Destructed . | . . . Prevented . | . . . Kills | -11 -10 -10 ------- Run | Yrd Mat Min Combat Hostiles Destroyed 17 | . 11 6 Guns 13 | . 7 6 AOE 4 | . 4 . Classes Destroyed 7 | 2 4 1 Worker 2 | 2 . . Builder 1 | . 1 . Tunneler 1 | 1 . . Mechanic 1 | . . 1 Operator 1 | . 1 . Swarmer 10 | . 9 1 Grunt 7 | . 2 5 Best Kill Streak 4 | 2 4 4 Combat Bots Only 4 | . 4 3 Max Kills in Single Turn 2 | 1 2 1 Gunslinging . | . . . Exploded 2 | . 2 . Melee . | . . . Uniques/NPCs Destroyed . | . . . Combat | -11 -10 -10 -------- Run | Yrd Mat Min Hostile Shots Fired 144 | . 67 77 Missed 34 | . 16 18 Damage Taken 1192 | . 506 686 Core 261 | . 139 122 Absorbed by Shields . | . . . Core Remaining (%) 100 | 100 . . Volleys Fired 73 | 5 35 33 Largest 2 | 2 2 2 Hottest 125 | 100 100 125 Shots Fired 125 | 10 55 60 Gun 123 | 10 53 60 Cannon . | . . . Launcher 2 | . 2 . Special . | . . . Kinetic 27 | . 11 16 Thermal 96 | 10 42 44 Explosive 2 | . 2 . Electromagnetic . | . . . Robot Hit Streak 8 | 4 8 8 Robot Miss Streak 4 | 1 4 3 Penetration Max . | . . . Secondary Targets . | . . . Shots Hit Robots 66 | 7 26 33 Core Hits 27 | 3 16 8 Critical Kills . | . . . Critical Parts Destroyed . | . . . Critical Strikes 5 | . 2 3 Burn 5 | . 2 3 Melee Attacks . | . . . Impact . | . . . Slashing . | . . . Piercing . | . . . Sneak Attacks . | . . . Combat Hostiles . | . . . Follow-up Attacks . | . . . Damage Inflicted 1293 | 101 578 614 Guns 945 | 101 309 535 Cannons . | . . . Explosions 348 | . 269 79 Melee . | . . . Ramming . | . . . Kinetic 119 | . 46 73 Thermal 905 | 101 263 541 Explosive 269 | . 269 . Electromagnetic . | . . . Impact . | . . . Slashing . | . . . Piercing . | . . . Highest Corruption . | . . . Average Corruption . | . . . Corruption Purged . | . . . Corruption Blocked . | . . . Overload Shots . | . . . Overflow Damage 8 | . 8 . Projectiles . | . . . Explosions 8 | . 8 . Melee . | . . . Knockbacks . | . . . Impact . | . . . Kinetic . | . . . Secondary . | . . . Self-Inflicted Damage 47 | . 47 . Shots 2 | . 2 . Rammed . | . . . Targets Rammed . | . . . Kicked . | . . . Crushed . | . . . Highest Temperature 351 | 78 351 234 Average Temperature 103 | 36 142 76 Received Heat Transfer 459 | . 90 369 Effects 1 | . 1 . Shutdowns 1 | . 1 . Siege Activations . | . . . Robots Corrupted . | . . . Combat Hostiles . | . . . Parts Fried . | . . . Impact Corruptions . | . . . Robots Melted . | . . . Combat Hostiles . | . . . Parts Melted 3 | . 3 . Heat Transferred 2505 | 296 925 1284 Parts Sabotaged . | . . . Parts Stolen . | . . . Parts Stripped . | . . . Power Chain Reactions . | . . . Alert | -11 -10 -10 ------- Run | Yrd Mat Min Peak Influence 267 | 15 267 185 Initial 51 | . 9 51 Average 65 | 4 74 91 Maximum Alert Level 1 | . 1 . Low Security (%) 96 | 100 93 100 Level 1 3 | . 6 . Level 2 . | . . . Level 3 . | . . . Level 4 . | . . . Level 5 . | . . . High Security . | . . . Max Security . | . . . Squads Dispatched 4 | . 3 1 Investigation 1 | . 1 . Extermination . | . . . Reinforcement 2 | . 2 . Assault 1 | . . 1 Garrison . | . . . Intercept . | . . . Searches Triggered . | . . . Construction Impeded . | . . . Haulers Reinforced . | . . . Active Scanning Responses . | . . . Cargo Convoy Interrupts . | . . . Stealth | -11 -10 -10 --------- Run | Yrd Mat Min Distress Signals . | . . . Communications Jammed . | . . . Distress Signals . | . . . Times Spotted 26 | . 15 11 Peak Tracking Total 4 | . 4 4 Tactical Retreats 2 | . 1 1 Traps | -11 -10 -10 ------- Run | Yrd Mat Min Traps Triggered 2 | . 2 . Indirectly . | . . . Trap Hack Attempts . | . . . Triggered . | . . . Disarmed . | . . . Reprogrammed . | . . . Reused . | . . . Traps Extracted . | . . . Installed . | . . . Triggered . | . . . Machines | -11 -10 -10 ---------- Run | Yrd Mat Min Machines Disabled 2 | . 1 1 Max in Single Turn 1 | . 1 1 Machines Repaired . | . . . Machines Dismantled . | . . . Machines Sabotaged . | . . . Overloaded Fab Kills . | . . . Hacking | -11 -10 -10 --------- Run | Yrd Mat Min Machines Accessed 1 | . 1 . Terminals 1 | . 1 . Fabricators . | . . . Repair Stations . | . . . Recycling Units . | . . . Scanalyzers . | . . . Garrison Access . | . . . Total Hacks 3 | . 3 . Successful 1 | . 1 . Failed 2 | . 2 . Catastrophic 1 | . 1 . Database Lockouts . | . . . Manual 3 | . 3 . Terminals 3 | . 3 . Fabricators . | . . . Repair Stations . | . . . Recycling Units . | . . . Scanalyzers . | . . . Garrison Access . | . . . Terminal Hacks . | . . . Fabricator Hacks . | . . . Repair Station Hacks . | . . . Recycling Unit Hacks . | . . . Scanalyzer . | . . . Garrison Access Hacks . | . . . Unauthorized Hacks 1 | . 1 . Terminals 1 | . 1 . Botnet 1 | . 1 . Fabricators . | . . . Repair Stations . | . . . Recycling Units . | . . . Scanalyzers . | . . . Garrison Access . | . . . Data Cores Recovered . | . . . Used . | . . . Hacking Detections 1 | . 1 . Full Trace Events . | . . . Feedback Events . | . . . Feedback Blocked . | . . . Robot Schematics Acquired . | . . . Robots Built . | . . . Authchips . | . . . Time . | . . . Total Robot Build Rating . | . . . Part Schematics Acquired . | . . . Parts Built . | . . . Authchips . | . . . Time . | . . . Total Part Build Rating . | . . . Parts Repaired . | . . . Time . | . . . Parts Recycled . | . . . Recycled Matter . | . . . Retrieved Matter . | . . . Retrieved Components . | . . . Parts Scanalyzed . | . . . Part Schematics Acquired . | . . . Parts Damaged . | . . . Bothacking | -11 -10 -10 ------------ Run | Yrd Mat Min Used RIF Installer . | . . . Robots Hacked . | . . . Non-combat . | . . . Combat . | . . . Robot Hacks Applied . | . . . Relay Couplers Released . | . . . Fabnet Peak Effective % . | . . . Robots Rewired . | . . . Allies Hacked . | . . . Hacks Repelled . | . . . Allies | -11 -10 -10 -------- Run | Yrd Mat Min Total Allies 1 | . . 1 Largest Group 1 | . . 1 Highest-Rated Group 31 | . . 31 Highest-Rated Ally 31 | . . 31 Total Orders . | . . . Ally Attacks 9 | . . 9 Total Damage 127 | . . 127 Kills 1 | . . 1 Allies Corrupted . | . . . Allies Melted . | . . . Intel | -11 -10 -10 ------- Run | Yrd Mat Min Robot Analysis Total . | . . . Derelict Logs Recovered 1 | . . 1 Drone Launches . | . . . Drone Recoveries . | . . . Exploration | -11 -10 -10 ------------- Run | Yrd Mat Min Turns Passed 814 | 164 439 211 Spaces Moved 427 | 110 239 78 Core 16 | 16 . . Treads . | . . . Legs 411 | 94 239 78 Wheels . | . . . Hover . | . . . Flight . | . . . Fastest Speed 50 | 50 120 120 Average Speed 118 | 109 122 121 Slowest Speed 190 | 120 190 190 Overloaded Moves . | . . . Propulsion Burnouts . | . . . Robots Hopped . | . . . Cave-ins Triggered . | . . . Exploration Rate (%) 21 | 5 46 12 Regions Visited 2 Branch Regions 1 Pre-discovered Areas 1 | . . 1 Known Exits Taken . | . . . Unknown Exits Taken 2 | 1 1 . Scrap Searched . | . . . Spaces Dug . | . . . Terrain Destroyed 28 | . 15 13 Melee . | . . . Projectile . | . . . AOE 28 | . 15 13 Terrain Rammed . | . . . Walls Destroyed . | . . . Machines Disabled . | . . . Actions | -11 -10 -10 --------- Run | Yrd Mat Min Total 615 | 144 334 137 Wait 36 | . 34 2 Move 425 | 109 238 78 Hop . | . . . Pick Up 37 | 16 11 10 Fast Attach . | . . . Attach 22 | 9 3 10 Detach 3 | 2 . 1 Swap 9 | 1 6 2 Drop 10 | 2 7 1 Fire 73 | 5 35 33 Melee . | . . . Ram . | . . . Kick . | . . . Crush . | . . . Escape Stasis . | . . . Rewire . | . . . Trap . | . . . Miscellaneous . | . . . Route ------- -11/Scrapyard -10/Materials (discovered 2 exits: [*Mat] / [*Min]) -10/Mines (discovered 2 exits: [*Mat x2]) History --------- Turn | Location | Event 10 | -11/Scrapyard | Discovered new exit (range 15) 165 | -11/Scrapyard | Entered Materials 267 | -10/Materials | Discovered new exit (range 14) 341 | -10/Materials | Build established: Mutant 582 | -10/Materials | Discovered new exit (range 7) 590 | -10/Materials | Core integrity fell below 50% 604 | -10/Materials | Entered Mines 605 | -10/Mines | Met a Derelict testing a Signal Generator 658 | -10/Mines | Core integrity fell below 20% 716 | -10/Mines | Lost 7 parts (2p2n1u2w) 757 | -10/Mines | Learned location of Storage (-8) 792 | -10/Mines | Discovered new exit (range 8) 797 | -10/Mines | Discovered new exit (range 10) 815 | -10/Mines | Destroyed by G-47 Trooper with Particle Gun Last Messages --------------- Acquired Aluminum Leg. Dropped Aluminum Leg. Acquired Lgt. Assault Rifle. Acquired Aluminum Leg. Acquired 20 matter. Acquired derelict log, extracted data. World map updated: -8/Storage. G-34 Mercenary destroyed. Acquired 1 matter. EXIT=FOUND Acquired Ion Engine. EXIT=FOUND G-47 Trooper: "LOCATED POTENTIAL SOURCE OF ANOMALOUS SIGNAL. NEUTRALIZING." Plasma Injector explodes. U-05 Engineer builds a Wall. Acquired 2 matter. U-05 Engineer builds a Wall. G-34 Mercenary destroyed. U-05 Engineer builds a Wall. Map ----- +----------------------------------------------------+ | ???????????????????????????????? | | ???????????????????????????????? | | ???????????????????????????????? | | ???????????????????????????????? | | ???????????????????????????????? | | ???????????????????????????????? | | ???????????????????????????????? | | ???????????????????????????????? | | ???????????????????????????????? | | ???????????????????????????????? | | ???????????????????????????????? | | ??????????????????#######??????? | | ??????????????????# ???????? | | ?????????????????## < ???????? | | ?????????????????#" ???????? | | ????????????????##" ???????? | | ????????????????? ????????? | | ?????????????????? ????????? | | ??????????????????? ????????? | | ????????????????##??; "????????? | | ????????????##### ?#=#????????? | | ???????????## u#g####?????? | | ???????????# < =[ #?????? | | ???????????# #?????? | | ???????????## #######% ####??? | | ????????????#?????????#! @ #??? | | ??????????????????????# #??? | | ??????????????????????#####r#??? | | ??????????????????????????#%#??? | | ?????????????????????????## #??? | | ????????????????????????## #??? | | ????????????????????????# #??? | | ????????????????????##### #??? | | ????????????????????# #??? | | ????????????????????# ## ##?? | | ????????????????????# ## #?? | | ????????????????????# ### #?? | | ????????????????????# #?## ##?? | | ?????????????######## #??# #??? | | ?????? #??#% #??? | | ?????? #??# #??? | | ?????????################# %##?? | | ?????????????????????## # ##? | | ?????????????????????# = = #? | | ?????????????????????# ! #? | | ?????????????????????## #? | | ??????????????????????##### ##? | | ??????????????????????????####?? | | ???????????????????????????????? | | | +----------------------------------------------------+ Best States ------------- Heat Dissipation 39 Energy Generation 18 Energy Capacity 250 Matter Stores 300 Matter Capacity 300 Sight Range 16 Terrain Scan Density 10 Evasion (%) 55 Item Schematics ----------------- None Robot Schematics ------------------ None Fabricated ------------ Nothing Alien Tech Used ----------------- None Achievements -------------- None Challenges ------------ None Game ------ Seed MinesnifferDecoderCharge Manual? 0 Play Time 00:18:36 Cumulative 10.7 hours Start 2024.04.08 @ 09:24:12 End 2024.04.08 @ 09:43:21 Sessions 1 Manual Loads 0 Difficulty Rogue Special Mode None Game No. 8 Rogue 8 Adventurer 0 Explorer 0 Win Type - Total 0 Types 0/0/0/0/0/0/0/0/0 Lore% 10 Gallery% 17 Achievement% 21 Wizard Run 0 Options --------- Layout 0 ASCII 0 Keyboard 0 Movement Numpad Keybinds 0 Fullscreen 1 Font 18/SmallcapsGlow Map View 76x50 Zoom Use 0% Tactical HUD 0 Map Filters NONE Filters NONE Steam 1 RUN: 5efdcbff-751c-42d7-8f0e-d3e078a028de